fUSD/lending_fUSD_20250219
["ID","MTS","AMOUNT","RATE_DAILY","PERIOD"]
[353632065,1739970645718,-500.0,0.00013698,2]
[353632068,1739970645728,-501.72389907,0.00013698,2]
[353632069,1739970645738,-534.72,0.00013698,2]
[353632072,1739970645747,-501.97302066,0.00013698,2]
[353632073,1739970645757,-500.0,0.00013698,2]
[353632076,1739970645766,-500.0,0.00013698,2]
[353632078,1739970645776,-500.0,0.00013698,2]
[353632080,1739970645785,-500.0,0.00013698,2]
[353632081,1739970645795,-500.0,0.00013698,2]
[353632083,1739970645804,-500.0,0.00013698,2]
[353632085,1739970645814,-516.90828565,0.00013698,2]
[353632088,1739970645824,-500.0,0.00013698,2]
[353632090,1739970645833,-732.5,0.00013698,2]
[353632092,1739970645842,-500.0,0.00013698,2]
[353632093,1739970645851,-500.0,0.00013698,2]
[353632096,1739970645861,-501.26739348,0.00013698,2]
[353632098,1739970645870,-732.02,0.00013698,2]
[353632100,1739970645879,-313.59598745,0.00013698,2]
[353632101,1739970645888,-185.86282879,0.00013698,2]
[353632103,1739970645898,-500.0,0.00013698,2]
[353632105,1739970645907,-500.0,0.00013698,2]
[353632107,1739970645918,-500.0,0.00013698,2]
[353632110,1739970645928,-500.0,0.00013698,2]
[353632112,1739970645938,-500.0,0.00013698,2]
[353632114,1739970645947,-500.0,0.00013698,2]
[353632116,1739970645958,-500.0,0.00013698,2]
[353632117,1739970645968,-500.0,0.00013698,2]
[353632119,1739970645978,-500.0,0.00013698,2]
[353632121,1739970645991,-500.0,0.00013698,2]
[353632124,1739970646010,-500.0,0.00013698,2]
[353632126,1739970646019,-500.0,0.00013698,2]
[353632128,1739970646029,-500.0,0.00013698,2]
[353632130,1739970646039,-500.0,0.00013698,2]
[353632132,1739970646049,-500.52715567,0.00013698,2]
[353632134,1739970646059,-662.21,0.00013698,2]
[353632136,1739970646068,-624.22944318,0.00013698,2]
[353632138,1739970646078,-500.0,0.00013698,2]
[353632140,1739970646087,-500.0,0.00013698,2]
[353632142,1739970646097,-500.0,0.00013698,2]
[353632144,1739970646106,-500.0,0.00013698,2]
[353632146,1739970646116,-500.0,0.00013698,2]
[353632148,1739970646126,-500.0,0.00013698,2]
[353632150,1739970646135,-500.0,0.00013698,2]
[353632152,1739970646143,-500.0,0.00013698,2]
[353632153,1739970646152,-578.59,0.00013698,2]
[353632155,1739970646163,-500.0,0.00013698,2]
[353632158,1739970646172,-500.0,0.00013698,2]
[353632159,1739970646182,-500.0,0.00013698,2]
[353632161,1739970646191,-500.0,0.00013698,2]
[353632186,1739970646407,-500.98703277,0.00013698,2]
[353632188,1739970646418,-500.0,0.00013698,2]
[353632190,1739970646428,-500.0,0.00013698,2]
[353632192,1739970646437,-500.0,0.00013698,2]
[353632194,1739970646447,-500.0,0.00013698,2]
[353632196,1739970646457,-500.0,0.00013698,2]
[353632198,1739970646466,-500.0,0.00013698,2]
[353632200,1739970646475,-500.0,0.00013698,2]
[353632202,1739970646485,-771.28,0.00013698,2]
[353632204,1739970646494,-734.25,0.00013698,2]
[353632206,1739970646504,-711.97,0.00013698,2]
[353632208,1739970646513,-500.0,0.00013698,2]
[353632210,1739970646524,-500.0,0.00013698,2]
[353632212,1739970646535,-500.0,0.00013698,2]
[353632214,1739970646545,-500.0,0.00013698,2]
[353632216,1739970646559,-500.0,0.00013698,2]
[353632218,1739970646568,-500.0,0.00013698,2]
[353632220,1739970646577,-500.0,0.00013698,2]
[353632222,1739970646587,-500.0,0.00013698,2]
[353632224,1739970646597,-1196.68,0.00013698,2]
[353632226,1739970646607,-636.15,0.00013698,2]
[353632228,1739970646616,-500.0,0.00013698,2]
[353632230,1739970646626,-498.2731342,0.00013698,2]
[353632232,1739970646635,-500.0,0.00013698,2]
[353632234,1739970646646,-500.0,0.00013698,2]
[353632236,1739970646655,-500.0,0.00013698,2]
[353632238,1739970646665,-500.0,0.00013698,2]
[353632240,1739970646674,-500.0,0.00013698,2]
[353632242,1739970646684,-501.26088595,0.00013698,2]
[353632244,1739970646694,-500.0,0.00013698,2]
[353632246,1739970646703,-500.0,0.00013698,2]
[353632248,1739970646712,-765.94,0.00013698,2]
[353632250,1739970646722,-500.0,0.00013698,2]
[353632252,1739970646731,-824.02,0.00013698,2]
[353632254,1739970646740,-500.0,0.00013698,2]
[353632256,1739970646750,-503.94229818,0.00013698,2]
[353632258,1739970646759,-1310.7,0.00013698,2]
[353632260,1739970646768,-500.0,0.00013698,2]
[353632262,1739970646778,-500.0,0.00013698,2]
[353632264,1739970646787,-500.0,0.00013698,2]
[353632266,1739970646799,-669.84,0.00013698,2]
[353632268,1739970646809,-500.0,0.00013698,2]
[353632270,1739970646819,-241.62462163,0.00013698,2]
[353632272,1739970646829,-500.0,0.00013698,2]
[353632274,1739970646838,-500.0,0.00013698,2]
[353632276,1739970646848,-660.4,0.00013698,2]
[353632278,1739970646857,-500.0,0.00013698,2]
[353632280,1739970646867,-501.03,0.00013698,2]
[353632282,1739970646878,-500.0,0.00013698,2]
[353632284,1739970646887,-500.0,0.00013698,2]
[353632286,1739970646897,-500.0,0.00013698,2]
[353632288,1739970646907,-276.89431855,0.00013698,2]
[353632290,1739970646917,-500.0,0.00013698,2]
[353632292,1739970646927,-500.0,0.00013698,2]
[353632294,1739970646937,-526.07,0.00013698,2]
[353632295,1739970646946,-500.0,0.00013698,2]
[353632296,1739970646955,-500.0,0.00013698,2]
[353632297,1739970646964,-500.0,0.00013698,2]
[353632298,1739970646973,-500.0,0.00013698,2]
[353632299,1739970646982,-500.0,0.00013698,2]
[353632300,1739970646991,-181.88509989,0.00013698,2]
[353632301,1739970647001,-1000.0,0.00013698,3]
[353632302,1739970647010,-500.0,0.00013698,2]
[353632304,1739970647019,-500.0,0.00013698,2]
[353632306,1739970647029,-500.0,0.00013698,2]
[353632308,1739970647038,-937.45,0.00013698,2]
[353632310,1739970647050,-855.03,0.00013698,2]
[353632312,1739970647060,-500.0,0.00013698,2]
[353632314,1739970647072,-791.26,0.00013698,2]
[353632316,1739970647082,-500.0,0.00013698,2]
[353632317,1739970647091,-821.08,0.00013698,2]
[353632319,1739970647100,-500.0,0.00013698,2]
[353632321,1739970647111,-765.86,0.00013698,2]
[353632324,1739970647120,-500.0,0.00013698,2]
[353632326,1739970647130,-500.0,0.00013698,2]
[353632327,1739970647140,-500.0,0.00013698,2]
[353632329,1739970647149,-501.42821504,0.00013698,2]
[353632331,1739970647159,-609.58,0.00013698,2]
[353632334,1739970647169,-500.0,0.00013698,2]
[353632336,1739970647179,-258.17473617,0.00013698,2]
[353632338,1739970647188,-500.0,0.00013698,2]
[353632340,1739970647198,-500.0,0.00013698,2]
[353632342,1739970647207,-1436.05,0.00013698,2]
[353632343,1739970647217,-500.0,0.00013698,2]
[353632346,1739970647226,-270.19116108,0.00013698,2]
[353632393,1739970647691,-229.80883892,0.00013698,2]
[353632395,1739970647700,-500.0,0.00013698,2]
[353632397,1739970647710,-505.51773265,0.00013698,2]
[353632399,1739970647720,-1342.93,0.00013698,2]
[353632402,1739970647730,-498.54699344,0.00013698,2]
[353632403,1739970647739,-517.06,0.00013698,2]
[353632405,1739970647749,-500.0,0.00013698,2]
[353632407,1739970647759,-500.0,0.00013698,2]
[353632409,1739970647768,-500.0,0.00013698,2]
[353632411,1739970647778,-500.0,0.00013698,2]
[353632413,1739970647788,-500.0,0.00013698,2]
[353632415,1739970647798,-500.0,0.00013698,2]
[353632417,1739970647808,-646.8,0.00013698,2]
[353632419,1739970647817,-500.0,0.00013698,2]
[353632421,1739970647827,-500.0,0.00013698,2]
[353632423,1739970647837,-501.23967504,0.00013698,2]
[353632425,1739970647847,-500.0,0.00013698,2]
[353632427,1739970647857,-500.0,0.00013698,2]
[353632429,1739970647867,-648.67,0.00013698,2]
[353632431,1739970647877,-500.0,0.00013698,2]
[353632433,1739970647886,-657.09,0.00013698,2]
[353632435,1739970647896,-500.0,0.00013698,2]
[353632437,1739970647905,-593.98,0.00013698,2]
[353632439,1739970647914,-500.0,0.00013698,2]
[353632441,1739970647924,-500.0,0.00013698,2]
[353632443,1739970647934,-500.0,0.00013698,2]
[353632446,1739970647945,-500.0,0.00013698,2]
[353632447,1739970647956,-642.78,0.00013698,2]
[353632449,1739970647966,-500.0,0.00013698,7]
[353632451,1739970647976,-508.34038136,0.00013698,2]
[353632453,1739970647987,-500.0,0.00013698,2]
[353632455,1739970647997,-500.0,0.00013698,2]
[353632457,1739970648006,-500.0,0.00013698,2]
[353632459,1739970648016,-500.0,0.00013698,2]
[353632462,1739970648027,-500.0,0.00013698,2]
[353632463,1739970648038,-500.0,0.00013698,2]
[353632466,1739970648049,-500.0,0.00013698,2]
[353632467,1739970648060,-500.0,0.00013698,2]
[353632469,1739970648070,-500.0,0.00013698,2]
[353632472,1739970648081,-500.0,0.00013698,2]
[353632473,1739970648091,-905.63,0.00013698,2]
[353632476,1739970648101,-500.0,0.00013698,2]
[353632478,1739970648111,-501.04237704,0.00013698,2]
[353632479,1739970648121,-500.0,0.00013698,2]
[353632481,1739970648132,-500.0,0.00013698,2]
[353632484,1739970648143,-500.0,0.00013698,2]
[353632486,1739970648154,-500.0,0.00013698,2]
[353632488,1739970648165,-1247.73,0.00013698,2]
[353632490,1739970648176,-500.0,0.00013698,2]
[353632492,1739970648186,-508.80416564,0.00013698,2]
[353632493,1739970648197,-500.0,0.00013698,2]
[353632496,1739970648208,-500.0,0.00013698,2]
[353632498,1739970648218,-500.0,0.00013698,2]
[353632500,1739970648229,-500.0,0.00013698,2]
[353632501,1739970648239,-500.0,0.00013698,2]
[353632503,1739970648250,-500.0,0.00013698,2]
[353632506,1739970648262,-500.0,0.00013698,2]
[353632508,1739970648274,-500.0,0.00013698,2]
[353632509,1739970648284,-500.0,0.00013698,2]
[353632511,1739970648292,-500.0,0.00013698,2]
[353632513,1739970648302,-500.0,0.00013698,2]
[353632515,1739970648311,-500.0,0.00013698,2]
[353632517,1739970648320,-500.0,0.00013698,2]
[353632519,1739970648329,-500.0,0.00013698,2]
[353632521,1739970648337,-500.0,0.00013698,2]
[353632523,1739970648347,-500.0,0.00013698,2]
[353632526,1739970648357,-1335.15,0.00013698,2]
[353632528,1739970648366,-202.32152136,0.00013698,2]
[353632530,1739970648376,-500.0,0.00013698,2]
[353632532,1739970648386,-500.0,0.00013698,2]
[353632534,1739970648396,-500.0,0.00013698,2]
[353632535,1739970648407,-500.0,0.00013698,2]
[353632537,1739970648418,-845.87,0.00013698,2]
[353632539,1739970648429,-630.0,0.00013698,2]
[353632542,1739970648440,-500.0,0.00013698,2]
[353632544,1739970648450,-500.0,0.00013698,2]
[353632546,1739970648461,-500.0,0.00013698,2]
[353632548,1739970648472,-500.0,0.00013698,2]
[353632550,1739970648482,-500.0,0.00013698,2]
[353632552,1739970648492,-500.0,0.00013698,2]
[353632554,1739970648503,-500.0,0.00013698,2]
[353632556,1739970648513,-501.53044048,0.00013698,2]
[353632558,1739970648524,-500.0,0.00013698,2]
[353632559,1739970648536,-500.0,0.00013698,2]
[353632562,1739970648549,-501.06647911,0.00013698,2]
[353632564,1739970648561,-502.81,0.00013698,2]
[353632566,1739970648572,-500.0,0.00013698,2]
[353632567,1739970648582,-599.67749925,0.00013698,2]
[353632569,1739970648593,-500.0,0.00013698,2]
[353632571,1739970648604,-500.0,0.00013698,2]
[353632574,1739970648615,-500.0,0.00013698,2]
[353632576,1739970648626,-1490.21,0.00013698,2]
[353632577,1739970648636,-578.72,0.00013698,2]
[353632587,1739970648726,-570.69,0.00013698,2]
[353632588,1739970648736,-500.0,0.00013698,2]
[353632589,1739970648747,-814.43,0.00013698,2]
[353632590,1739970648757,-506.82570897,0.00013698,2]
[353632591,1739970648768,-500.0,0.00013698,2]
[353632592,1739970648779,-500.0,0.00013698,2]
[353632593,1739970648790,-500.0,0.00013698,2]
[353632595,1739970648800,-500.0,0.00013698,2]
[353632596,1739970648810,-966.08,0.00013698,2]
[353632597,1739970648821,-500.0,0.00013698,2]
[353632598,1739970648831,-500.0,0.00013698,2]
[353632599,1739970648840,-511.36,0.00013698,2]
[353632600,1739970648851,-500.0,0.00013698,2]
[353632601,1739970648860,-500.0,0.00013698,2]
[353632602,1739970648870,-170.68818674,0.00013698,2]
[353632603,1739970648890,-472.85181326,0.00013698,2]
[353632605,1739970648900,-500.0,0.00013698,2]
[353632607,1739970648911,-631.32,0.00013698,2]
[353632609,1739970648922,-500.0,0.00013698,2]
[353632611,1739970648933,-495.27318174,0.00013698,2]
[353632616,1739970648974,-438.90681826,0.00013698,2]
[353632618,1739970648984,-500.0,0.00013698,2]
[353632620,1739970648994,-366.64896548,0.00013698,2]
[353632622,1739970649004,-500.0,0.00013698,2]
[353632623,1739970649014,-500.0,0.00013698,2]
[353632625,1739970649024,-500.0,0.00013698,2]
[353632627,1739970649034,-821.07,0.00013698,2]
[353632629,1739970649044,-225.25489268,0.00013698,2]
[353632672,1739970649481,-274.74510732,0.00013698,2]
[353632674,1739970649491,-500.0,0.00013698,2]
[353632676,1739970649500,-500.0,0.00013698,2]
[353632678,1739970649510,-66.21132125,0.00013698,2]
[353632680,1739970649533,-433.78867875,0.00013698,2]
[353632682,1739970649544,-513.9651557,0.00013698,2]
[353632685,1739970649555,-238.5185602,0.00013698,2]
[353632687,1739970649567,-1468.25,0.00013698,2]
[353632688,1739970649577,-500.0,0.00013698,2]
[353632690,1739970649588,-500.0,0.00013698,2]
[353632693,1739970649599,-719.62,0.00013698,2]
[353632695,1739970649611,-245.62912439,0.00013698,2]
[353632696,1739970649621,-313.92848096,0.00013698,2]
[353632699,1739970649635,-435.80151904,0.00013698,2]
[353632701,1739970649645,-500.0,0.00013698,2]
[353632703,1739970649655,-500.0,0.00013698,2]
[353632705,1739970649666,-500.0,0.00013698,2]
[353632707,1739970649677,-500.0,0.00013698,2]
[353632709,1739970649687,-500.0,0.00013698,2]
[353632711,1739970649698,-500.0,0.00013698,2]
[353632713,1739970649708,-500.0,0.00013698,2]
[353632715,1739970649719,-500.0,0.00013698,2]
[353632717,1739970649729,-533.88,0.00013698,2]
[353632719,1739970649740,-935.24,0.00013698,2]
[353632721,1739970649750,-514.07732574,0.00013698,2]
[353632723,1739970649762,-500.0,0.00013698,2]
[353632725,1739970649772,-500.0,0.00013698,2]
[353632727,1739970649782,-500.0,0.00013698,2]
[353632729,1739970649792,-500.0,0.00013698,2]
[353632731,1739970649804,-500.0,0.00013698,2]
[353632733,1739970649814,-500.0,0.00013698,2]
[353632734,1739970649825,-526.08471255,0.00013698,2]
[353632737,1739970649835,-500.0,0.00013698,2]
[353632738,1739970649845,-500.0,0.00013698,2]
[353632740,1739970649855,-500.0,0.00013698,2]
[353632742,1739970649864,-500.0,0.00013698,2]
[353632744,1739970649874,-500.0,0.00013698,2]
[353632746,1739970649884,-500.0,0.00013698,2]
[353632748,1739970649894,-500.0,0.00013698,2]
[353632750,1739970649904,-500.0,0.00013698,2]
[353632752,1739970649913,-995.42,0.00013698,2]
[353632754,1739970649923,-500.0,0.00013698,2]
[353632756,1739970649933,-500.0,0.00013698,2]
[353632758,1739970649942,-203.15045017,0.00013698,2]
[353632760,1739970649951,-504.56616054,0.00013698,2]
[353632762,1739970649962,-500.0,0.00013698,2]
[353632764,1739970649971,-500.0,0.00013698,2]
[353632766,1739970649981,-500.0,0.00013698,2]
[353632768,1739970649990,-500.0,0.00013698,2]
[353632770,1739970649999,-500.0,0.00013698,2]
[353632772,1739970650009,-500.0,0.00013698,2]
[353632774,1739970650019,-500.0,0.00013698,2]
[353632776,1739970650028,-500.0,0.00013698,2]
[353632778,1739970650037,-500.0,0.00013698,2]
[353632780,1739970650046,-500.0,0.00013698,2]
[353632782,1739970650055,-500.0,0.00013698,2]
[353632784,1739970650065,-500.0,0.00013698,2]
[353632786,1739970650074,-500.0,0.00013698,2]
[353632788,1739970650084,-500.0,0.00013698,2]
[353632790,1739970650093,-500.0,0.00013698,2]
[353632792,1739970650103,-500.0,0.00013698,2]
[353632794,1739970650112,-827.2,0.00013698,2]
[353632796,1739970650121,-500.0,0.00013698,2]
[353632798,1739970650130,-500.0,0.00013698,2]
[353632800,1739970650139,-216.50770705,0.00013698,2]
[353632802,1739970650148,-500.0,0.00013698,2]
[353632804,1739970650157,-500.0,0.00013698,2]
[353632805,1739970650166,-500.0,0.00013698,2]
[353632807,1739970650176,-500.0,0.00013698,2]
[353632809,1739970650185,-500.0,0.00013698,2]
[353632811,1739970650194,-500.0,0.00013698,2]
[353632813,1739970650203,-500.0,0.00013698,2]
[353632815,1739970650213,-500.0,0.00013698,2]
[353632817,1739970650223,-500.0,0.00013698,2]
[353632820,1739970650235,-500.0,0.00013698,2]
[353632822,1739970650245,-500.0,0.00013698,2]
[353632824,1739970650254,-500.0,0.00013698,2]
[353632826,1739970650264,-500.0,0.00013698,2]
[353632828,1739970650274,-1492.8,0.00013698,2]
[353632830,1739970650284,-518.59,0.00013698,2]
[353632832,1739970650293,-1047.66,0.00013698,2]
[353632834,1739970650303,-500.0,0.00013698,2]
[353632836,1739970650313,-500.0,0.00013698,2]
[353632838,1739970650322,-500.0,0.00013698,2]
[353632840,1739970650332,-500.0,0.00013698,2]
[353632842,1739970650342,-500.0,0.00013698,2]
[353632844,1739970650351,-383.57345491,0.00013698,2]
[353632848,1739970650383,-116.42654509,0.00013698,2]
[353632850,1739970650392,-192.98845491,0.00013698,2]
[353632923,1739970932335,1000.0,0.0002,120]
[353632924,1739970936321,1000.0,0.0002,120]
[353632925,1739970937942,1000.0,0.0002,120]
[353632928,1739971353216,-158.33,0.00010205,2]
[353632929,1739971353240,-726.91,0.00010721,2]
[353632930,1739971353262,-150.0,0.00011225,2]
[353632931,1739971353284,-150.0,0.00011474,2]
[353632932,1739971353306,-499.43,0.00011942,2]
[353632933,1739971353329,-250.0,0.00012591,2]
[353632934,1739971353352,-5320.33,0.0001262,2]
[353632938,1739971426475,189.72,8.767e-05,2]
[353632939,1739971544358,702.55977827,0.00020597,120]
[353632948,1739971770046,2474.80142456,0.000205,120]
[353632964,1739971832051,-1330.85,0.0001,2]
[353632965,1739971832110,-74179.50962169,0.0001,2]
[353632967,1739971832121,-21488.901687,0.0001,2]
[353632969,1739971832132,-8429.59609855,0.0001,2]
[353632991,1739971837842,-485.29891397,0.0001,2]
[353632992,1739971837853,-1418.98397657,0.0001,2]
[353633189,1739971839765,-13801.9847317,0.0001,2]
[353633191,1739971839777,-585.50720326,0.0001,2]
[353633199,1739971839847,-1976.56975214,0.0001,2]
[353633502,1739971842721,-345.45950319,0.0001,2]
[353633509,1739971842779,-2774.56912652,0.0001,2]
[353633511,1739971842790,-370.13638,0.0001,2]
[353633517,1739971842838,-320.10151107,0.0001,2]
[353633519,1739971842850,-3932.57996359,0.0001,2]
[353633522,1739971842861,-143303.52261763,0.0001,2]
[353633795,1739971845628,-1930.10992698,0.0001,2]
[353633796,1739971845647,-69857.66020438,0.0001,2]
[353633808,1739971984750,3056.51281151,0.0002,120]
[353633820,1739972543453,151.48,8.767e-05,2]
[353633824,1739972735382,203.62113033,9.159e-05,2]
[353633841,1739973031904,-6027.48672527,9.91e-05,2]
[353633842,1739973031914,-1000.0,9.999e-05,2]
[353633843,1739973031923,-2785.29967473,0.0001,2]
[353633844,1739973031936,-280.5,0.0001,2]
[353633845,1739973032025,-280.35137859,0.0001,2]
[353633846,1739973032251,-1500.00005,0.0001,2]
[353633879,1739973037952,-518.9007186,0.0001,2]
[353633880,1739973038013,-544.38170658,0.0001,2]
[353633881,1739973038087,-4312.73493,0.0001,2]
[353634075,1739973040174,-1992.74627261,0.0001,2]
[353634077,1739973040185,-339.0713519,0.0001,2]
[353634079,1739973040197,-4017.37703819,0.0001,2]
[353634100,1739973040399,-54733.5548943,0.0001,2]
[353634102,1739973040408,-25900.52983476,0.0001,2]
[353634104,1739973040418,-66129.49241219,0.0001,2]
[353634427,1739973043606,-2908.46017568,0.0001,2]
[353634434,1739973043667,-3253.96770501,0.0001,2]
[353634436,1739973043677,-851.86,0.00010102,2]
[353634438,1739973043687,-150.0,0.00011,2]
[353634440,1739973043697,-4000.0,0.0001114,2]
[353634442,1739973043707,-150.0,0.0001131,2]
[353634444,1739973043717,-1482.39,0.00011892,2]
[353634446,1739973043727,-500.0,0.00011945,2]
[353634476,1739973043736,-1158.85,0.00011945,2]
[353634480,1739973044008,-297.19960968,0.00012028,2]
[353634482,1739973044018,-10547.43,0.00012029,2]
[353634484,1739973044027,-1000.0,0.00012044,2]
[353634486,1739973044036,-150.0,0.00012044,2]
[353634488,1739973044045,-842.57,0.00012052,2]
[353634490,1739973044055,-250.0,0.00012091,2]
[353634492,1739973044064,-434.57,0.0001212,2]
[353634494,1739973044075,-366.74,0.00012258,2]
[353634496,1739973044084,-150.0,0.00012329,2]
[353634498,1739973044093,-851.86,0.00012365,2]
[353634500,1739973044102,-4000.0,0.000124,2]
[353634501,1739973044111,-432.31286095,0.00012439,2]
[353634503,1739973044121,-503.55,0.0001262,2]
[353634505,1739973044130,-491.73,0.0001262,2]
[353634507,1739973044140,-492.3,0.0001262,2]
[353634509,1739973044149,-495.64,0.0001262,2]
[353634512,1739973044158,-495.81,0.0001262,2]
[353634514,1739973044168,-494.78,0.0001262,2]
[353634516,1739973044177,-506.2,0.0001262,2]
[353634517,1739973044186,-500.82,0.0001262,2]
[353634519,1739973044196,-490.81,0.0001262,2]
[353634521,1739973044205,-343.3,0.00012743,2]
[353634523,1739973044214,-525.3341,0.000129,2]
[353634525,1739973044224,-1000.0,0.00013,13]
[353634527,1739973044233,-940.21809283,0.00013,2]
[353634530,1739973044243,-550.0,0.00013,2]
[353634532,1739973044252,-151.79,0.0001312,2]
[353634533,1739973044261,-151.53,0.0001312,2]
[353634536,1739973044271,-432.3049,0.00013173,2]
[353634538,1739973044280,-398.49253957,0.00013199,2]
[353634540,1739973044290,-13282.18347046,0.000132,2]
[353634542,1739973044300,-262.014,0.000132,2]
[353634543,1739973044310,-528.1123,0.000132,2]
[353634546,1739973044322,-13282.18347037,0.00013244,2]
[353634548,1739973044332,-162.35220441,0.00013246,2]
[353634550,1739973044341,-315.7794,0.0001327,2]
[353634551,1739973044351,-5000.0,0.0001327,2]
[353634554,1739973044360,-414.51317661,0.00013273,2]
[353634556,1739973044370,-3286.94707225,0.00013273,2]
[353634557,1739973044379,-1887.28211936,0.00013273,2]
[353634560,1739973044393,-303.40878445,0.00013273,2]
[353634562,1739973044403,-13282.18347037,0.00013289,2]
[353634563,1739973044412,-1000.0,0.000133,2]
[353634566,1739973044421,-1000.0,0.000133,2]
[353634568,1739973044430,-1000.0,0.000133,2]
[353634569,1739973044440,-1000.0,0.000133,2]
[353634572,1739973044449,-1000.0,0.000133,2]
[353634574,1739973044457,-1000.0,0.000133,2]
[353634576,1739973044467,-1000.0,0.000133,3]
[353634578,1739973044477,-1000.0,0.000133,3]
[353634580,1739973044486,-1000.0,0.000133,3]
[353634582,1739973044495,-1000.0,0.000133,3]
[353634584,1739973044505,-950.0,0.000133,3]
[353634586,1739973044514,-1000.0,0.000133,2]
[353634588,1739973044523,-1000.0,0.000133,2]
[353634590,1739973044532,-1000.0,0.000133,2]
[353634592,1739973044542,-1000.0,0.000133,2]
[353634594,1739973044551,-1000.0,0.000133,2]
[353634596,1739973044561,-1000.0,0.000133,2]
[353634598,1739973044570,-1000.0,0.000133,2]
[353634599,1739973044578,-1000.0,0.000133,3]
[353634601,1739973044588,-1000.0,0.000133,3]
[353634603,1739973044597,-1000.0,0.000133,3]
[353634605,1739973044606,-1000.0,0.000133,2]
[353634607,1739973044615,-1000.0,0.000133,2]
[353634609,1739973044624,-1000.0,0.000133,2]
[353634611,1739973044634,-3286.94707216,0.00013309,2]
[353634613,1739973044643,-13282.18347037,0.00013333,2]
[353634615,1739973044652,-3286.94707216,0.00013346,2]
[353634617,1739973044661,-414.51317659,0.00013368,2]
[353634619,1739973044671,-59269.82902627,0.0001337,3]
[353634621,1739973044680,-943.0,0.0001337,2]
[353634623,1739973044689,-998857.64725859,0.0001337,2]
[353634625,1739973044699,-151.0,0.0001337,2]
[353634627,1739973044708,-151.0,0.0001337,2]
[353634629,1739973044718,-501.8163031,0.00013373,2]
[353634631,1739973044730,-500.0,0.00013373,2]
[353634633,1739973044739,-500.0,0.00013373,2]
[353634635,1739973044749,-151.79834909,0.00013373,2]
[353634637,1739973044758,-153.29657236,0.00013373,2]
[353634639,1739973044776,-151.49696571,0.00013373,2]
[353634641,1739973044786,-167.7774531,0.00013373,2]
[353634643,1739973044795,-159.78780766,0.00013373,2]
[353634645,1739973044804,-160.0600056,0.00013373,2]
[353634647,1739973044813,-150.79967722,0.00013373,2]
[353634649,1739973044822,-13282.18347037,0.00013378,2]
[353634651,1739973044832,-3286.94707216,0.00013382,2]
[353634653,1739973044841,-150.0,0.00013404,2]
[353634655,1739973044850,-150.0,0.00013415,2]
[353634657,1739973044860,-3286.94707216,0.00013418,2]
[353634659,1739973044869,-13282.18347037,0.00013422,2]
[353634661,1739973044878,-1000.0,0.00013424,3]
[353634663,1739973044888,-960.682537,0.00013426,2]
[353634665,1739973044898,-150.0,0.00013426,2]
[353634667,1739973044907,-150.0,0.00013429,2]
[353634668,1739973044916,-150.0,0.00013429,2]
[353634669,1739973044925,-150.0,0.0001343,2]
[353634670,1739973044934,-150.0,0.0001343,2]
[353634671,1739973044943,-150.0,0.00013435,2]